fUST/lending_fUST_20240122
["ID","MTS","AMOUNT","RATE_DAILY","PERIOD"]
[312462150,1705902640736,-575.38052779,0.00030995,2]
[312462152,1705902640747,-587.93162078,0.00030996,4]
[312462153,1705902640757,-179.25404743,0.00030997,4]
[312462154,1705902640766,-1061.52908192,0.00030997,4]
[312462155,1705902640775,-348.43893629,0.00030998,4]
[312462156,1705902640784,-230.53377045,0.00030998,4]
[312462157,1705902640793,-11201.80012979,0.00030998,4]
[312462158,1705902640803,-309.38115423,0.00030998,4]
[312462159,1705902640813,-858.2802028,0.00030998,4]
[312462160,1705902640823,-8538.80729249,0.00030998,2]
[312462161,1705902640833,-322.3052034,0.00030998,4]
[312462162,1705902640843,-4624.57959859,0.00030998,4]
[312462163,1705902640852,-6246.04341826,0.00030998,4]
[312462164,1705902640861,-326.05202718,0.00030999,4]
[312462165,1705902640871,-7613.59318454,0.00030999,4]
[312462166,1705902640881,-256.56506417,0.00030999,4]
[312462167,1705902640890,-151.0,0.00030999,2]
[312462168,1705902640900,-151.0,0.00030999,2]
[312462169,1705902640909,-151.0,0.00030999,2]
[312462170,1705902640919,-151.0,0.00030999,2]
[312462171,1705902640928,-151.0,0.00030999,2]
[312462172,1705902640938,-151.0,0.00030999,2]
[312462173,1705902640947,-151.0,0.00030999,2]
[312462174,1705902640957,-151.0,0.00030999,2]
[312462175,1705902640966,-151.0,0.00030999,2]
[312462176,1705902640976,-151.0,0.00030999,2]
[312462177,1705902640985,-52395.70522225,0.00031,2]
[312462178,1705902641002,-7000.98030412,0.00031,2]
[312462196,1705902644061,-452.74208012,0.00012059,2]
[312462199,1705902644084,-2039.05381066,0.0001206,2]
[312462200,1705902644108,-199.25222227,0.0001206,2]
[312462202,1705902644129,-1439.19025016,0.0001206,2]
[312462204,1705902644150,-5960.81748256,0.00031,2]
[312462206,1705902644162,-3960.25362106,0.00031,2]
[312462288,1705902646620,-1474.37449724,0.00031,2]
[312462291,1705902646796,-350.98489009,0.00031,2]
[312462317,1705902865294,4006.03760173,0.0001,2]
[312462323,1705903443520,414.00683416,0.0001,2]
[312462324,1705903444306,154.82968734,0.0001,2]
[312462325,1705903445385,155.03959626,0.0001,2]
[312462326,1705903446065,4323.92489832,0.0001,2]
[312462327,1705903462282,155.38975275,0.0001,2]
[312462371,1705903837775,-154.82968734,0.00015,2]
[312462372,1705903837785,-4813.95392208,0.00015354,2]
[312462373,1705903837794,-876.39189184,0.00015355,2]
[312462374,1705903837803,-561.64006482,0.00015355,2]
[312462375,1705903837812,-1993.49479484,0.00015355,2]
[312462376,1705903837821,-154.82968734,0.00015356,2]
[312462377,1705903837830,-1439.19025016,0.00015356,2]
[312462378,1705903837839,-19701.14547142,0.00015356,2]
[312462379,1705903837848,-211.53795191,0.00015357,2]
[312462380,1705903837857,-154.92385074,0.00015357,2]
[312462381,1705903837867,-5000.0,0.00015357,2]
[312462382,1705903837875,-301.93072688,0.00015357,2]
[312462383,1705903837884,-81207.38465248,0.00015357,2]
[312462384,1705903837893,-711.772838,0.00015358,2]
[312462385,1705903837902,-1266.7890629,0.00015358,2]
[312462386,1705903837911,-15915.17297811,0.00015358,2]
[312462387,1705903837921,-243.13309117,0.00015359,2]
[312462388,1705903837930,-154.82968734,0.00015359,2]
[312462389,1705903837938,-903.63325516,0.00015359,2]
[312462390,1705903837947,-588.35431441,0.00015359,2]
[312462391,1705903837957,-265.48221302,0.00015359,2]
[312462392,1705903837966,-154.82968734,0.00015359,2]
[312462393,1705903837975,-1579.39395429,0.00015359,2]
[312462394,1705903837984,-644.40876473,0.00015359,2]
[312462395,1705903837993,-977.99536434,0.0001536,2]
[312462396,1705903838002,-178.91876323,0.0001536,2]
[312462397,1705903838011,-199.25222227,0.0001536,2]
[312462398,1705903838022,-687.96014716,0.0001536,2]
[312462399,1705903838031,-154.82968734,0.00015361,2]
[312462400,1705903838040,-1293.76681809,0.00015361,2]
[312462401,1705903838050,-2039.05381066,0.00015361,2]
[312462402,1705903838059,-236.219976,0.00015362,2]
[312462403,1705903838068,-21686.1459775,0.00015846,2]
[312462404,1705903838077,-20874.58230083,0.00015847,2]
[312462405,1705903838086,-19867.27856324,0.00015847,2]
[312462406,1705903838095,-6013.4651163,0.00015854,2]
[312462407,1705903838104,-272.55691777,0.000165,2]
[312462408,1705903838114,-167.64411646,0.00016755,2]
[312462409,1705903838123,-24900.0,0.00016858,2]
[312462410,1705903838132,-760.31790163,0.00017879,2]
[312462411,1705903838141,-353.022344,0.00018869,2]
[312462412,1705903838150,-3485.08832391,0.00019468,2]
[312462413,1705903838160,-200.0,0.00019647,2]
[312462414,1705903838170,-294.81882163,0.00019865,2]
[312462415,1705903838179,-237.58987137,0.00019865,2]
[312462416,1705903838188,-510.17616766,0.00019865,2]
[312462417,1705903838197,-10225.90388967,0.00019866,2]
[312462418,1705903838207,-323.13003236,0.0002,2]
[312462419,1705903838217,-155.16188918,0.00020949,2]
[312462420,1705903838227,-259.2509498,0.00020975,2]
[312462421,1705903838236,-1199.65937379,0.00020993,2]
[312462422,1705903838245,-168.96815,0.00021918,2]
[312462423,1705903838254,-425.98515357,0.00022,2]
[312462424,1705903838263,-208.31397001,0.00022,2]
[312462425,1705903838273,-1219.35780178,0.00024,2]
[312462426,1705903838282,-824.33300328,0.000247,2]
[312462427,1705903838291,-2109.81844429,0.00024997,2]
[312462428,1705903838301,-3344.13818113,0.00024997,2]
[312462429,1705903838310,-470.20287596,0.00024997,2]
[312462430,1705903838319,-1085.13683584,0.00025,2]
[312462431,1705903838329,-1046.35622193,0.00025,2]
[312462432,1705903838338,-7381.29040931,0.00025,2]
[312462433,1705903838347,-4723.24260277,0.00025,2]
[312462434,1705903838356,-620.0000171,0.000264,2]
[312462435,1705903838365,-8407.34,0.00027397,3]
[312462436,1705903838375,-7006.12,0.00027397,3]
[312462437,1705903838384,-5838.43,0.00027397,3]
[312462438,1705903838393,-620.00000086,0.0002772,2]
[312462439,1705903838403,-24392.71190768,0.000279,2]
[312462440,1705903838413,-353.022344,0.00028303,2]
[312462441,1705903838423,-2725.99665141,0.00028342,5]
[312462442,1705903838432,-932.5168025,0.00028348,2]
[312462443,1705903838442,-2798.5608072,0.00028356,5]
[312462444,1705903838451,-524.73015135,0.00028356,3]
[312462445,1705903838462,-1500.0,0.000285,2]
[312462446,1705903838472,-341.560392,0.00028767,2]
[312462447,1705903838482,-168.223069,0.00028767,2]
[312462448,1705903838491,-8644.33982954,0.00028898,2]
[312462449,1705903838500,-154.82968734,0.00029,10]
[312462450,1705903838510,-1880.79357717,0.00029,2]
[312462451,1705903838519,-309.47389438,0.00029,2]
[312462452,1705903838529,-156.26782485,0.00029064,2]
[312462453,1705903838538,-620.00000004,0.00029106,2]
[312462454,1705903838547,-1500.0,0.000295,2]
[312462455,1705903838556,-341.560392,0.00029648,2]
[312462456,1705903838566,-4011.1198485,0.00029788,2]
[312462457,1705903838577,-42265.05785634,0.0002979,7]
[312462458,1705903838589,-156.4645764,0.00029827,2]
[312462459,1705903838598,-168.223069,0.00029888,2]
[312462460,1705903838607,-405.08629027,0.00029977,2]
[312462461,1705903838618,-173.60841012,0.00029977,2]
[312462462,1705903838627,-657.40715545,0.0003,3]
[312462463,1705903838637,-464.67563146,0.0003,2]
[312462464,1705903838646,-244.14912804,0.0003,4]
[312462465,1705903838659,-154.82968734,0.0003,4]
[312462466,1705903838669,-2371.37507479,0.0003,2]
[312462467,1705903838679,-970.77409437,0.0003,2]
[312462468,1705903838688,-10599.34086051,0.0003,2]
[312462469,1705903838697,-336.05595657,0.0003,4]
[312462470,1705903838707,-560.48837219,0.0003,6]
[312462471,1705903838717,-200.38510669,0.0003,4]
[312462472,1705903838726,-600.0,0.0003,2]
[312462473,1705903838735,-155.0,0.0003,2]
[312462474,1705903838745,-174.0,0.0003,2]
[312462475,1705903838754,-151.36107663,0.00030053,7]
[312462476,1705903838764,-153.0,0.00030137,2]
[312462477,1705903838773,-153.0,0.00030137,2]
[312462478,1705903838783,-153.0,0.00030137,2]
[312462479,1705903838792,-307.5721256,0.00030137,2]
[312462480,1705903838801,-153.0,0.00030137,2]
[312462481,1705903838810,-153.0,0.00030137,2]
[312462482,1705903838819,-153.0,0.00030137,2]
[312462483,1705903838828,-199.1966855,0.00030137,2]
[312462484,1705903838837,-153.0,0.00030137,2]
[312462485,1705903838846,-153.0,0.00030137,2]
[312462486,1705903838855,-153.0,0.00030137,2]
[312462487,1705903838866,-153.0,0.00030137,2]
[312462488,1705903838875,-199.1966855,0.00030137,2]
[312462489,1705903838884,-153.0,0.00030137,2]
[312462490,1705903838893,-153.0,0.00030137,2]
[312462491,1705903838902,-199.1966855,0.00030137,2]
[312462492,1705903838911,-199.1966855,0.00030137,2]
[312462493,1705903838920,-199.1966855,0.00030137,2]
[312462494,1705903838929,-199.1966855,0.00030137,2]
[312462495,1705903838938,-199.1966855,0.00030137,2]
[312462496,1705903838947,-199.1966855,0.00030137,2]
[312462497,1705903838957,-153.0,0.00030137,2]
[312462498,1705903838966,-153.0,0.00030137,2]
[312462499,1705903838976,-153.0,0.00030137,2]
[312462500,1705903838985,-153.7874584,0.00030137,2]
[312462501,1705903838995,-153.0,0.00030137,2]
[312462502,1705903839004,-153.0,0.00030137,2]
[312462503,1705903839013,-457.5024889,0.00030137,2]
[312462504,1705903839022,-153.0,0.00030137,2]
[312462505,1705903839031,-153.0,0.00030137,2]
[312462506,1705903839041,-153.0,0.00030137,2]
[312462507,1705903839050,-199.1966855,0.00030137,2]
[312462508,1705903839059,-153.0,0.00030137,2]
[312462509,1705903839068,-153.0,0.00030137,2]
[312462510,1705903839077,-153.0,0.00030137,2]
[312462511,1705903839086,-153.0,0.00030137,2]
[312462512,1705903839095,-153.0,0.00030137,2]
[312462513,1705903839104,-153.0,0.00030137,2]
[312462514,1705903839113,-153.0,0.00030137,2]
[312462515,1705903839122,-199.1966855,0.00030137,2]
[312462516,1705903839131,-153.0,0.00030137,2]
[312462517,1705903839140,-153.0,0.00030137,2]
[312462518,1705903839149,-153.0,0.00030137,2]
[312462519,1705903839158,-153.0,0.00030137,2]
[312462520,1705903839167,-199.1966855,0.00030137,2]
[312462522,1705903839176,-153.0,0.00030137,2]
[312462524,1705903839186,-153.0,0.00030137,2]
[312462526,1705903839195,-199.1966855,0.00030137,2]
[312462527,1705903839204,-153.0,0.00030137,2]
[312462528,1705903839214,-153.0,0.00030137,2]
[312462529,1705903839222,-153.0,0.00030137,2]
[312462530,1705903839231,-198.4418185,0.00030137,2]
[312462531,1705903839240,-153.0,0.00030137,2]
[312462532,1705903839249,-199.1433421,0.00030137,2]
[312462533,1705903839258,-281.3626415,0.00030137,2]
[312462534,1705903839267,-153.0,0.00030137,2]
[312462535,1705903839277,-153.0,0.00030137,2]
[312462536,1705903839285,-417.7674032,0.00030137,2]
[312462537,1705903839294,-153.0,0.00030137,2]
[312462538,1705903839303,-153.0,0.00030137,2]
[312462539,1705903839312,-153.0,0.00030137,2]
[312462540,1705903839321,-153.0,0.00030137,2]
[312462541,1705903839331,-153.0,0.00030137,2]
[312462542,1705903839340,-153.0,0.00030137,2]
[312462543,1705903839348,-153.0,0.00030137,2]
[312462544,1705903839357,-153.0,0.00030137,2]
[312462545,1705903839367,-153.0,0.00030137,2]
[312462546,1705903839376,-157.894736,0.00030137,2]
[312462547,1705903839385,-400.0,0.00030137,2]
[312462548,1705903839394,-151.36107663,0.00030167,7]
[312462549,1705903839403,-398.2423976,0.00030278,2]
[312462550,1705903839412,-1500.0,0.000305,2]
[312462551,1705903839421,-341.560392,0.00030528,2]
[312462552,1705903839430,-620.0,0.00030561,2]
[312462553,1705903839440,-1713.59,0.00030728,2]
[312462554,1705903839449,-1713.59,0.00030728,2]
[312462555,1705903839458,-1713.59,0.00030728,2]
[312462556,1705903839467,-1713.59,0.00030728,2]
[312462557,1705903839476,-1713.59,0.00030728,2]
[312462558,1705903839485,-1713.59,0.00030728,2]
[312462559,1705903839494,-1713.59,0.00030728,2]
[312462560,1705903839503,-1713.59,0.00030728,2]
[312462561,1705903839512,-91608.46482116,0.00030729,2]
[312462562,1705903839521,-157.894736,0.00030746,2]
[312462563,1705903839530,-5000.0,0.00030782,7]
[312462564,1705903839539,-2678.40952185,0.00030784,7]
[312462565,1705903839553,-2321.59047815,0.00030784,7]
[312462566,1705903839562,-151.36107663,0.00030798,7]
[312462567,1705903839571,-1444.17764287,0.000308,2]
[312462574,1705903840206,-586.29235713,0.000308,2]
[312462575,1705903840216,-167.64411645,0.000308,2]
[312462576,1705903840225,-151.36107663,0.00030821,7]
[312462577,1705903840234,-1000.0,0.00030876,7]
[312462578,1705903840243,-1354.69698707,0.00030899,2]
[312462579,1705903840254,-1231.95280182,0.00030899,2]
[312462586,1705903840762,-2002.61413331,0.00015354,2]
[312462587,1705903840772,-175.22193864,0.00015354,2]
[312462588,1705903840782,-20450.33587168,0.00030899,2]
[312462601,1705903842877,-4160.0,0.00030899,2]
[312462638,1705904154374,-154.82968734,0.00016498,2]
[312462639,1705904154408,-1993.49479484,0.00016498,2]
[312462640,1705904154441,-903.63325516,0.00016499,2]
[312462641,1705904154474,-687.96014716,0.00016499,2]
[312462642,1705904154507,-243.13309117,0.00016499,2]
[312462643,1705904154540,-272.17271123,0.000165,2]
[312462670,1705904702285,10300.80544997,0.000165,2]
[312462671,1705904738777,684.00305895,0.000165,2]
[312462672,1705904750400,309.42757829,0.0001485,2]
[312462673,1705904758796,408.39347109,0.000165,2]
[312462674,1705904788398,154.82968734,0.0001485,2]
[312462675,1705904806932,263.14850229,0.00013365,2]
[312462676,1705904807067,200.0,0.00021977,7]
[312462715,1705905031945,-154.82968734,0.00017531,2]
[312462717,1705905031954,-711.772838,0.00017531,2]
[312462719,1705905031963,-154.82968734,0.00017531,2]
[312462721,1705905031973,-903.63325516,0.00017531,2]
[312462723,1705905031988,-154.82968734,0.00017532,2]
[312462725,1705905031998,-1439.19025016,0.00017532,2]
[312462727,1705905032007,-265.48221302,0.00017533,2]
[312462729,1705905032017,-763.24520182,0.00017534,2]
[312462731,1705905032028,-178.91876323,0.00019385,2]
[312462733,1705905032038,-1266.7890629,0.00019385,2]
[312462735,1705905032047,-199.25222227,0.00019385,2]
[312462736,1705905032058,-154.82968734,0.00019386,3]
[312462738,1705905032068,-20874.58230083,0.00019386,2]
[312462740,1705905032077,-1468.66343637,0.00019386,2]
[312462742,1705905032087,-2039.05381066,0.00019387,2]
[312462744,1705905032096,-977.99536434,0.00019387,2]
[312462746,1705905032106,-175.22193864,0.00019387,2]
[312462748,1705905032115,-1993.49479484,0.00019387,2]
[312462750,1705905032124,-176.22005716,0.00019393,2]
[312462752,1705905032133,-640.98853376,0.000195,2]
[312462754,1705905032143,-24900.0,0.00019593,2]
[312462756,1705905032152,-2084.29033128,0.0002,2]
[312462758,1705905032162,-323.13003236,0.0002,2]
[312462760,1705905032171,-3650.28192004,0.00021977,2]
[312462762,1705905032180,-300.0,0.00021977,2]
[312462764,1705905032189,-425.98515357,0.00023037,2]
[312462766,1705905032198,-169.655195,0.00023038,2]
[312462768,1705905032207,-3587.11275057,0.00024,2]
[312462770,1705905032216,-595.02587032,0.00024383,2]
[312462772,1705905032225,-165.04572519,0.00024388,2]
[312462774,1705905032235,-154.86062544,0.00024388,2]
[312462776,1705905032244,-260.99609825,0.00024388,2]
[312462778,1705905032253,-243.12930959,0.00024388,2]
[312462780,1705905032262,-6738.65340808,0.00024392,2]
[312462782,1705905032271,-309.59757263,0.00024392,2]
[312462784,1705905032281,-546.30725825,0.00024392,2]
[312462786,1705905032291,-824.33300328,0.000247,2]
[312462788,1705905032300,-483.9441703,0.00025,2]
[312462790,1705905032308,-6977.7604074,0.00025,2]
[312462792,1705905032322,-403.53000191,0.00025,2]
[312462795,1705905032331,-3808.61639207,0.00025,2]
[312462828,1705905037995,-301.93072688,0.0001753,2]
[312462830,1705905038005,-269.94454782,0.00025,2]
[312462832,1705905038014,-5909.48958615,0.00028387,5]
[312462833,1705905038024,-8779.17806804,0.00028629,2]
[312462834,1705905038035,-273.248313,0.00028767,2]
[312462835,1705905038045,-170.268773,0.00028767,2]
[312462836,1705905038058,-168.223069,0.00028767,2]
[312462837,1705905038069,-1880.79357717,0.00029,2]
[312462838,1705905038078,-154.82968734,0.00029,10]
[312462839,1705905038088,-309.47389438,0.00029,2]
[312462840,1705905038098,-153.7874584,0.00029315,2]
[312462841,1705905038108,-281.3626415,0.00029315,2]
[312462842,1705905038117,-153.0,0.00029315,2]
[312462843,1705905038126,-199.1433421,0.00029315,2]
[312462844,1705905038136,-620.00000004,0.0002937,2]
[312462846,1705905038146,-2958.250939,0.000295,2]
[312462847,1705905038155,-151.36107663,0.00029592,2]
[312462848,1705905038164,-151.36107663,0.00029607,2]
[312462850,1705905038174,-156.26782485,0.00029645,2]
[312462852,1705905038183,-273.248313,0.00029648,2]
[312462853,1705905038192,-405.08215806,0.0002982,2]
[312462855,1705905038201,-2359.30159524,0.00029971,5]
[312462857,1705905038211,-4738.71,0.0002998,3]
[312462859,1705905038220,-5686.45,0.0002999,3]
[312462861,1705905038229,-405.08629027,0.00029991,2]
[312462862,1705905038238,-154.31858677,0.00029991,2]
[312462863,1705905038247,-582.73974719,0.0003,3]
[312462864,1705905038257,-657.40715545,0.0003,3]
[312462865,1705905038266,-500.0,0.0003,5]
[312462866,1705905038275,-464.67563146,0.0003,2]
[312462867,1705905038285,-244.14912804,0.0003,4]
[312462868,1705905038295,-154.82968734,0.0003,4]
[312462869,1705905038304,-2371.37507479,0.0003,2]
[312462870,1705905038314,-1320.74418374,0.0003,2]
[312462871,1705905038323,-5499.99999907,0.0003,2]
[312462872,1705905038333,-560.48837219,0.0003,6]
[312462873,1705905038342,-200.38510669,0.0003,4]
[312462874,1705905038352,-336.05595657,0.0003,4]
[312462875,1705905038361,-600.0,0.0003,2]
[312462876,1705905038370,-155.0,0.0003,2]
[312462877,1705905038379,-50000.0,0.0003,2]
[312462878,1705905038388,-29728.0,0.0003,2]
[312462879,1705905038397,-174.0,0.0003,2]
[312462880,1705905038406,-153.0,0.00030137,2]
[312462881,1705905038415,-153.0,0.00030137,2]
[312462882,1705905038424,-153.0,0.00030137,2]
[312462883,1705905038434,-248.7413473,0.00030137,2]
[312462884,1705905038443,-153.0,0.00030137,2]
[312462885,1705905038452,-153.0,0.00030137,2]
[312462886,1705905038461,-153.0,0.00030137,2]
[312462887,1705905038470,-153.0,0.00030137,2]
[312462888,1705905038479,-153.0,0.00030137,2]
[312462889,1705905038488,-199.1966855,0.00030137,2]
[312462890,1705905038498,-153.0,0.00030137,2]
[312462891,1705905038506,-153.0,0.00030137,2]
[312462892,1705905038515,-153.0,0.00030137,2]
[312462893,1705905038524,-153.0,0.00030137,2]
[312462894,1705905038535,-153.0,0.00030137,2]
[312462895,1705905038543,-153.0,0.00030137,2]
[312462896,1705905038553,-153.0,0.00030137,2]
[312462897,1705905038562,-153.0,0.00030137,2]
[312462898,1705905038572,-153.0,0.00030137,2]
[312462899,1705905038581,-153.0,0.00030137,2]
[312462900,1705905038590,-199.1966855,0.00030137,2]
[312462901,1705905038719,-306.0,0.00030137,2]
[312462902,1705905038728,-264.7674032,0.00030137,2]
[312462903,1705905038738,-199.1966855,0.00030137,2]
[312462904,1705905038747,-199.1966855,0.00030137,2]
[312462905,1705905038756,-153.0,0.00030137,2]
[312462906,1705905038765,-199.1966855,0.00030137,2]
[312462907,1705905038775,-153.0,0.00030137,2]
[312462908,1705905038785,-199.1966855,0.00030137,2]
[312462909,1705905038794,-153.0,0.00030137,2]
[312462910,1705905038803,-153.0,0.00030137,2]
[312462911,1705905038812,-199.1966855,0.00030137,2]
[312462912,1705905038822,-153.0,0.00030137,2]
[312462913,1705905038831,-199.1966855,0.00030137,2]
[312462914,1705905038840,-153.0,0.00030137,2]
[312462915,1705905038850,-153.0,0.00030137,2]
[312462916,1705905038859,-153.0,0.00030137,2]
[312462917,1705905038869,-153.0,0.00030137,2]
[312462918,1705905038878,-199.1966855,0.00030137,2]
[312462919,1705905038887,-153.0,0.00030137,2]
[312462920,1705905038897,-153.0,0.00030137,2]
[312462921,1705905038906,-307.4659568,0.00030137,2]
[312462922,1705905038915,-199.1966855,0.00030137,2]
[312462923,1705905038924,-199.1966855,0.00030137,2]
[312462924,1705905038933,-210.7718519,0.00030137,2]
[312462925,1705905038942,-153.0,0.00030137,2]
[312462926,1705905038951,-153.0,0.00030137,2]
[312462927,1705905038961,-153.0,0.00030137,2]
[312462928,1705905038970,-306.0,0.00030137,2]
[312462929,1705905038982,-153.0,0.00030137,2]
[312462930,1705905038991,-307.5721256,0.00030137,2]
[312462931,1705905039000,-153.0,0.00030137,2]
[312462932,1705905039009,-199.1966855,0.00030137,2]
[312462933,1705905039018,-153.0,0.00030137,2]
[312462934,1705905039030,-153.0,0.00030137,2]
[312462935,1705905039040,-153.0,0.00030137,2]
[312462936,1705905039048,-199.1966855,0.00030137,2]
[312462937,1705905039058,-153.0,0.00030137,2]
[312462938,1705905039068,-153.0,0.00030137,2]
[312462939,1705905039078,-153.0,0.00030137,2]
[312462940,1705905039087,-199.1966855,0.00030137,2]
[312462941,1705905039099,-199.1966855,0.00030137,2]
[312462942,1705905039108,-153.0,0.00030137,2]
[312462943,1705905039118,-153.0,0.00030137,2]
[312462944,1705905039127,-153.0,0.00030137,2]
[312462945,1705905039136,-304.5024889,0.00030137,2]
[312462946,1705905039145,-153.0,0.00030137,2]
[312462947,1705905039155,-198.2375017,0.00030137,2]
[312462948,1705905039165,-157.894736,0.00030137,2]
[312462949,1705905039174,-168.223069,0.00030137,2]
[312462950,1705905039183,-400.0,0.00030137,2]
[312462951,1705905039192,-4011.11984949,0.00030499,5]
[312462952,1705905039201,-1500.0,0.000305,2]
[312462953,1705905039213,-273.248313,0.00030528,2]
[312462954,1705905039222,-57600.69607224,0.00030548,2]
[312463245,1705905043115,-2002.20651061,0.0001753,2]
[312463247,1705905043125,-300.0,0.00021977,2]
[312463249,1705905043135,-2659.16049341,0.00030548,2]
[312463477,1705905046627,-323.2515265,0.00022,2]
[312463478,1705905046636,-703.47212311,0.00030538,3]
[312463599,1705906232100,-1266.7890629,0.00017809,2]
[312463600,1705906232110,-760.76957335,0.0001781,2]
[312463601,1705906232119,-175.22193864,0.00017811,2]
[312463602,1705906232129,-711.772838,0.00017811,2]
[312463603,1705906232138,-182.7,0.00017811,2]
[312463604,1705906232147,-161.02224773,0.00017812,2]
[312463605,1705906232156,-903.63325516,0.00017812,2]
[312463606,1705906232166,-199.25222227,0.00017812,2]
[312463607,1705906232176,-977.99536434,0.00017813,2]
[312463608,1705906232185,-1468.66343637,0.00017813,2]
[312463609,1705906232194,-154.82968734,0.00017814,3]
[312463610,1705906232203,-301.93072688,0.00017814,2]
[312463611,1705906232212,-1439.19025016,0.00017814,2]
[312463612,1705906232222,-162.17318871,0.00017821,2]
[312463613,1705906232230,-13144.37873291,0.00017935,2]
[312463614,1705906232239,-938.4974796,0.00017939,2]
[312463615,1705906232248,-1066.710075,0.00017942,2]
[312463616,1705906232257,-526.47495194,0.0001894,2]
[312463617,1705906232265,-246.07285378,0.0001894,2]
[312463618,1705906232276,-242.99577859,0.00018941,2]
[312463619,1705906232285,-1493.0231482,0.00018942,2]
[312463620,1705906232294,-24900.0,0.00018942,2]
[312463621,1705906232303,-13759.2755042,0.00018942,2]
[312463622,1705906232312,-1700.64348773,0.00019,2]
[312463623,1705906232322,-178.2261447,0.00019539,2]
[312463624,1705906232332,-200.0,0.00019726,2]
[312463625,1705906232341,-1644.34209133,0.00019776,2]
[312463626,1705906232351,-678.6288756,0.0002,2]
[312463627,1705906232361,-16832.94243252,0.00021309,2]
[312463628,1705906232371,-2359.30159524,0.00021316,5]
[312463629,1705906232381,-5180.65166756,0.00021755,2]
[312463630,1705906232391,-166.666666,0.00021918,2]
[312463631,1705906232400,-3501.39778616,0.00021975,2]
[312463632,1705906232410,-8444.09618001,0.00021976,2]
[312463633,1705906232420,-164.98581571,0.00021977,2]
[312463634,1705906232429,-425.98515357,0.00022,2]
[312463635,1705906232439,-2767.05373625,0.00022904,5]
[312463636,1705906232448,-1570.89243892,0.00023,2]
[312463637,1705906232459,-4012.5594856,0.00024,2]
[312463638,1705906232469,-1066.710075,0.00026913,2]
[312463639,1705906232478,-271.11057819,0.0002839,2]
[312463640,1705906232487,-569.85074178,0.00028396,5]
[312463641,1705906234246,-272.55691777,0.00017809,2]
[312463642,1705906234256,-1284.32930752,0.00028396,5]
[312463643,1705906234267,-2621.3060681,0.00028398,3]
[312463691,1705906238265,-154.82968734,0.00017808,3]
[312463693,1705906238275,-607.28064535,0.00028398,3]
[312463694,1705906238296,-1130.62328655,0.00028398,3]
[312463695,1705906238305,-876.62051921,0.00028408,3]
[312463696,1705906238316,-2828.00063051,0.00028408,3]
[312463697,1705906238327,-1526.43885028,0.00028408,3]
[312463698,1705906238336,-4108.16,0.00028418,3]
[312463699,1705906238345,-6524.26757874,0.00028448,2]
[312463700,1705906238354,-311.651636,0.00028767,2]
[312463701,1705906238362,-168.223069,0.00028767,2]
[312463702,1705906238372,-1880.79357717,0.00029,2]
[312463703,1705906238384,-154.82968734,0.00029,10]
[312463704,1705906238393,-309.47389438,0.00029,2]
[312463705,1705906238402,-9112.94247828,0.00029011,4]
[312463706,1705906238410,-199.1966855,0.00029315,2]
[312463707,1705906238419,-248.7413473,0.00029315,2]
[312463708,1705906238428,-153.0,0.00029315,2]
[312463709,1705906238437,-199.1966855,0.00029315,2]
[312463710,1705906238446,-153.0,0.00029315,2]
[312463711,1705906238455,-153.0,0.00029315,2]
[312463712,1705906238464,-153.0,0.00029315,2]
[312463713,1705906238473,-153.0,0.00029315,2]
[312463714,1705906238482,-199.1966855,0.00029315,2]
[312463715,1705906238491,-153.0,0.00029315,2]
[312463716,1705906238500,-199.1966855,0.00029315,2]
[312463717,1705906238508,-153.0,0.00029315,2]
[312463718,1705906238517,-153.7874584,0.00029315,2]
[312463719,1705906238527,-153.0,0.00029315,2]
[312463720,1705906238535,-153.0,0.00029315,2]
[312463721,1705906238544,-199.1966855,0.00029315,2]
[312463722,1705906238553,-306.0,0.00029315,2]
[312463723,1705906238562,-199.1966855,0.00029315,2]